bitfinex-derivatives/quotes_ETHF0:USTF0_20241020
["timestamp","ask_amount","ask_price","bid_price","bid_amount"]
[1729437838747,0.37206,2688.4,2688.2,0.3822]
[1729437839153,0.37206,2688.4,2688.3,0.37207]
[1729437839453,0.37206,2688.4,2688.2,0.75428]
[1729437839857,0.37206,2688.4,2688.3,0.37207]
[1729437840050,0.37207,2688.3,2688.2,0.75428]
[1729437840248,0.37207,2688.4,2688.3,0.37207]
[1729437840547,0.37207,2688.3,2688.2,0.75428]
[1729437840743,0.37207,2688.4,2688.2,0.75428]
[1729437841153,3.2078,2688.7,2688.3,0.37206]
[1729437841356,3.2078,2688.7,2688.2,0.3822]
[1729437841548,0.37203,2688.6,2688.5,0.37204]
[1729437841954,0.37203,2688.6,2688.2,0.3822]
[1729437842150,0.3917,2688.9,2688.5,0.37204]
[1729437842555,0.37201,2688.8,2688.6,0.37202]
[1729437842753,0.37201,2688.8,2688.2,0.3822]
[1729437842754,0.3917,2688.9,2688.2,0.3822]
[1729437843055,0.37199,2688.9,2688.7,0.37201]
[1729437843257,3.2078,2689.0,2688.2,5.47566485]
[1729437843459,0.37199,2688.9,2688.7,0.37201]
[1729437844352,3.2078,2689.0,2688.3,0.95546485]
[1729437844554,4.1548,2689.0,2688.2,0.3822]
[1729437844855,4.1548,2689.0,2688.5,0.37204]
[1729437844856,0.37202,2688.7,2688.5,0.37204]
[1729437845258,3.57978,2689.0,2688.7,0.372]
[1729437845449,0.37199,2688.9,2688.7,0.372]
[1729437845849,3.57978,2689.0,2688.8,0.372]
[1729437846361,3.2078,2689.0,2688.9,0.37199]
[1729437846658,3.2078,2689.0,2688.4,0.93015]
[1729437846857,3.2078,2689.0,2688.8,0.37199]
[1729437847057,0.37197,2689.1,2688.9,0.37198]
[1729437847560,0.37197,2689.1,2688.4,1.31545]
[1729437847759,0.37197,2689.1,2688.8,0.37199]
[1729437848560,0.37197,2689.1,2688.4,1.31545]
[1729437848765,0.37197,2689.1,2688.8,0.37199]
[1729437849365,0.37197,2689.1,2688.9,0.37198]
[1729437849660,3.6138,2689.3,2688.4,0.3853]
[1729437849860,41.1984,2689.4,2688.6,3.2078]
[1729437849861,44.0078,2689.4,2688.6,3.2078]
[1729437850060,3.2078,2689.4,2689.3,0.37193]
[1729437850257,3.2078,2689.8,2689.3,3.7184]
[1729437850452,3.57967,2689.8,2689.4,0.4104]
[1729437850655,0.37188,2689.7,2689.4,0.4104]
[1729437850858,44.0078,2689.8,2689.5,0.3719]
[1729437851061,0.37189,2689.7,2689.4,0.78231]
[1729437851257,44.0078,2689.8,2689.4,0.4104]
[1729437851563,3.2078,2689.5,2689.1,0.4158]
[1729437851858,3.2078,2689.5,2688.6,2.36325727]
[1729437851859,3.2078,2689.5,2688.9,0.4035]
[1729437852368,0.37201,2688.8,2688.4,0.37204]
[1729437852564,3.57981,2688.8,2688.5,0.37204]
[1729437852957,3.2078,2688.8,2688.3,0.8193]
[1729437853157,3.2078,2688.8,2688.6,0.37202]
[1729437853869,3.2078,2688.8,2688.7,0.37202]
[1729437854263,0.4132,2689.2,2688.3,0.8193]
[1729437854568,3.2078,2689.3,2689.0,0.37196]
[1729437854863,1.28991,2689.5,2689.2,0.37194]
[1729437855070,0.37192,2689.4,2689.1,0.37196]
[1729437855271,0.918,2689.5,2688.7,3.2078]
[1729437855272,0.37193,2689.3,2689.0,0.37197]
[1729437855459,0.37193,2689.4,2688.7,3.2078]
[1729437855658,4.1258,2689.6,2689.2,0.37194]
[1729437855872,0.37192,2689.4,2689.1,0.37195]
[1729437856264,0.37191,2689.5,2689.2,0.37195]
[1729437857770,0.37191,2689.5,2688.7,0.93005]
[1729437857962,0.37191,2689.5,2689.3,0.37193]
[1729437858158,3.2078,2689.6,2688.7,1.14148902]
[1729437858362,3.2078,2689.6,2689.5,0.3719]
[1729437859081,0.37192,2689.5,2689.2,0.37194]
[1729437859266,0.37192,2689.4,2689.2,0.37195]
[1729437859467,0.37191,2689.5,2689.2,0.37195]
[1729437859762,3.2078,2689.6,2689.2,0.37195]
[1729437859963,3.2078,2689.6,2689.1,0.3918]
[1729437860171,0.37193,2689.4,2689.2,0.37194]
[1729437860365,0.37191,2689.5,2689.2,0.37194]
[1729437860575,0.3719,2689.5,2689.1,0.76375]
[1729437860865,3.2078,2689.6,2689.1,0.3918]
[1729437861068,3.2078,2689.6,2689.4,0.37191]
[1729437861069,3.5797,2689.6,2689.4,0.37191]
[1729437861465,3.5797,2689.6,2689.3,0.37192]
[1729437861770,3.2078,2689.6,2689.1,0.3918]
[1729437861967,0.37192,2689.5,2689.2,0.37194]
[1729437863381,0.37192,2689.5,2689.1,0.3918]
[1729437863382,0.37192,2689.5,2689.3,0.37193]
[1729437863671,0.37192,2689.5,2689.3,0.37192]
[1729437864171,3.5797,2689.6,2689.4,0.37192]
[1729437865577,3.2078,2689.6,2689.1,0.3918]
[1729437865766,3.5797,2689.6,2689.4,0.37191]
[1729437866470,0.37191,2689.5,2689.2,0.37193]
[1729437866674,3.5797,2689.6,2689.3,0.37192]
[1729437866866,0.37191,2689.5,2689.3,0.37192]
[1729437867478,3.2078,2689.6,2689.3,0.37192]
[1729437867779,3.2078,2689.6,2689.1,0.3918]
[1729437867974,3.2078,2689.6,2689.3,0.37192]
[1729437867975,0.3719,2689.5,2689.3,0.37192]
[1729437868181,0.3719,2689.5,2689.1,0.3918]
[1729437868182,3.2078,2689.6,2689.1,0.3918]
[1729437868481,3.2078,2689.6,2689.5,0.3719]
[1729437871381,41.17187,2689.8,2689.5,0.3719]
[1729437871683,0.37188,2689.7,2689.5,0.3719]
[1729437873487,44.37967,2689.8,2689.2,0.4071]
[1729437873687,44.37967,2689.8,2689.5,0.37189]
[1729437873987,44.0078,2689.8,2689.2,0.4071]
[1729437874172,44.0078,2689.8,2689.6,0.37189]
[1729437874173,44.37967,2689.8,2689.6,0.37189]
[1729437874586,44.0078,2689.8,2689.2,0.4071]
[1729437874778,44.0078,2689.8,2689.5,0.3719]
[1729437874779,0.37188,2689.7,2689.5,0.3719]
[1729437875487,44.37967,2689.8,2689.2,0.4071]
[1729437875681,0.4059,2690.0,2689.8,0.37185]
[1729437875682,0.37184,2690.0,2689.8,0.37185]
[1729437875883,3.2078,2690.1,2689.4,3.2078]
[1729437876087,40.8,2690.2,2690.1,0.37182]
[1729437876377,40.8,2690.2,2690.0,0.37183]
[1729437876583,40.8,2690.2,2689.8,0.37185]
[1729437876882,44.0078,2690.2,2689.7,0.396]
[1729437877083,0.37182,2690.1,2689.7,0.396]
[1729437877289,0.37182,2690.1,2689.9,0.37185]
[1729437877691,0.37182,2690.1,2689.7,0.396]
[1729437877985,0.37182,2690.1,2689.8,0.37185]
[1729437878193,0.37185,2690.0,2689.7,0.76787]
[1729437878490,44.0078,2690.2,2689.7,0.396]
[1729437878793,44.0078,2690.2,2690.1,0.37182]
[1729437879889,40.8,2690.2,2689.8,0.4145]
[1729437880187,40.8,2690.2,2690.1,0.37182]
[1729437880891,41.17181,2690.2,2689.8,0.4145]
[1729437881189,40.8,2690.2,2690.1,0.37182]
[1729437881681,41.17181,2690.2,2690.1,0.37182]
[1729437882286,40.8,2690.2,2690.1,0.37182]
[1729437882485,40.8,2690.2,2689.8,0.4145]
[1729437882792,41.17182,2690.2,2689.8,0.4145]
[1729437882984,41.17182,2690.2,2690.1,0.37182]
[1729437883587,40.8,2690.2,2690.1,0.37182]
[1729437885184,3.2078,2690.6,2690.5,0.37177]
[1729437885490,0.37175,2690.7,2690.5,0.37176]
[1729437885684,0.889,2691.0,2690.6,0.4125]
[1729437885989,0.889,2691.0,2690.6,0.78425]
[1729437886189,40.8,2690.9,2690.6,0.4125]
[1729437886691,0.37173,2690.8,2690.6,0.4125]
[1729437887293,0.37174,2690.7,2690.6,0.4125]
[1729437887992,0.37173,2690.8,2690.6,0.78425]
[1729437888487,41.17171,2690.9,2690.7,0.37173]
[1729437888690,40.8,2690.9,2690.7,0.37173]
[1729437889184,40.8,2690.9,2690.8,0.37172]
[1729437890983,40.8,2690.9,2690.7,0.4063]
[1729437891785,40.8,2690.9,2690.8,0.37172]
[1729437893491,4.64497067,2691.5,2691.2,0.37167]
[1729437893799,3.2078,2691.5,2691.3,0.37165]
[1729437893992,44.0078,2691.5,2691.4,0.37164]
[1729437894586,44.0078,2691.5,2691.2,3.2078]
[1729437894587,40.8,2691.5,2691.2,3.2078]
[1729437894894,40.8,2691.5,2691.3,0.76115]
[1729437895095,40.8,2691.5,2691.4,0.37164]
[1729437895592,40.8,2691.5,2691.4,0.76024]
[1729437895988,0.3716,2691.8,2691.5,0.37162]
[1729437896493,40.8,2691.7,2691.6,0.37161]
[1729437898695,40.8,2691.7,2691.5,3.2078]
[1729437898903,40.8,2691.7,2691.5,3.57942]
[1729437899797,40.8,2691.7,2691.6,0.37161]
[1729437900097,41.8,2691.7,2691.6,0.37161]
[1729437900616,1.0,2691.7,2691.6,0.37161]
[1729437902091,1.0,2691.7,2691.6,4.08681]
[1729437902398,1.0,2691.7,2691.6,0.37161]
[1729437902798,1.0,2691.7,2691.6,4.08681]
[1729437903197,0.3715,2692.4,2692.3,0.37151]
[1729437903399,4.83252187,2693.1,2692.2,3.2078]
[1729437903696,0.37147,2692.7,2692.5,0.37149]
[1729437903902,41.1194,2693.0,2692.5,0.37149]
[1729437903903,41.1194,2693.0,2692.5,3.2078]
[1729437904199,0.37146,2692.8,2692.5,3.57928]
[1729437904504,0.37146,2692.8,2692.6,0.37147]
[1729437905104,0.37147,2692.7,2692.5,3.57929]
[1729437905303,0.37144,2692.9,2692.6,0.37147]
[1729437905499,41.1194,2693.0,2692.5,3.57929]
[1729437905805,0.37146,2692.8,2692.5,3.57929]
[1729437906008,0.37146,2692.8,2692.6,0.37147]
[1729437906203,41.49083,2693.0,2692.7,0.37146]
[1729437906498,41.49083,2693.0,2692.8,3.2078]
[1729437907504,41.1194,2693.0,2692.6,0.3952]
[1729437907703,41.1194,2693.0,2692.4,3.2078]
[1729437907704,44.3272,2693.0,2692.4,3.2078]
[1729437908095,0.37147,2692.7,2692.4,0.3715]
[1729437908300,0.37145,2692.9,2692.5,0.37148]
[1729437908695,0.37145,2692.9,2692.4,0.3715]
[1729437908897,41.1194,2693.0,2692.1,0.8181]
[1729437909103,0.37144,2692.9,2692.6,0.37148]
[1729437909299,0.37144,2692.9,2692.7,0.37146]
[1729437910201,41.49083,2693.0,2692.7,0.37146]
[1729437911112,41.49083,2693.0,2692.7,0.76746]
[1729437911497,41.1194,2693.0,2692.7,0.396]
[1729437911702,41.1194,2693.0,2692.8,0.37144]
[1729437911898,41.1194,2693.0,2692.7,0.396]
[1729437912107,41.1194,2693.0,2692.3,3.2078]
[1729437912307,0.37147,2692.7,2692.4,0.3715]
[1729437912499,41.1194,2693.0,2692.3,3.6217]
[1729437912798,0.37145,2692.8,2692.5,0.37148]
[1729437913003,41.1194,2693.0,2692.5,0.37148]
[1729437913204,41.1194,2693.0,2692.3,3.6217]
[1729437913510,0.37146,2692.8,2692.4,0.37149]
[1729437913714,0.37146,2692.8,2692.4,0.3715]
[1729437913910,41.1194,2693.0,2692.3,3.6217]
[1729437914109,41.1194,2693.0,2692.4,0.3715]
[1729437914316,0.37147,2692.7,2692.4,0.3715]
[1729437914505,41.1194,2693.0,2692.3,3.6217]
[1729437914811,0.37147,2692.7,2692.4,0.3715]
[1729437917403,0.37147,2692.7,2692.3,3.6217]
[1729437917710,41.1194,2693.0,2692.5,0.37149]
[1729437917919,0.37147,2692.7,2692.5,0.37149]
[1729437918308,0.37147,2692.7,2692.5,0.37148]
[1729437920613,0.37146,2692.8,2692.4,3.2078]
[1729437920816,0.69083,2693.0,2692.8,0.37144]
[1729437921019,0.3194,2693.0,2692.9,0.37144]
[1729437921515,0.3194,2693.0,2692.7,3.2078]
[1729437921903,0.37144,2692.9,2692.7,3.57926]
[1729437922109,41.4934,2693.4,2692.7,3.2078]
[1729437922311,41.8855,2693.4,2692.7,3.2078]
[1729437922504,0.37139,2693.3,2693.1,0.37141]
[1729437922907,42.25687,2693.4,2693.2,0.37138]
[1729437923110,41.4765,2693.4,2693.2,0.37138]
[1729437923314,41.1921,2693.4,2693.0,3.2078]
[1729437923510,41.56347,2693.4,2693.2,0.37138]
[1729437923710,41.1921,2693.4,2693.2,0.37138]
[1729437924819,41.1921,2693.4,2693.0,3.2078]
[1729437925017,40.8,2693.4,2693.3,0.37138]
[1729437925211,1.8032,2694.1,2693.6,0.37133]
[1729437925212,0.3947,2694.0,2693.6,0.37133]
[1729437925413,0.3713,2693.9,2693.6,0.37133]
[1729437925606,0.3713,2693.9,2693.7,0.37132]
[1729437925607,40.8,2693.8,2693.7,0.37132]
[1729437925825,0.3713,2693.9,2693.7,0.37132]
[1729437926112,0.3713,2693.9,2693.6,0.37133]
[1729437927415,41.1947,2694.0,2693.3,3.2078]
[1729437927623,0.37131,2693.9,2693.6,0.37133]
[1729437927913,0.3713,2693.9,2693.6,0.37133]
[1729437928310,0.3713,2693.9,2693.4,0.37137]
[1729437928509,0.3713,2693.9,2693.5,0.386]
[1729437929125,0.3713,2693.9,2693.7,0.37132]
[1729437929723,0.3713,2693.9,2693.5,0.386]
[1729437929917,41.1947,2694.0,2693.7,0.37132]
[1729437930112,0.3713,2693.9,2693.6,0.37133]
[1729437930318,41.1947,2694.0,2693.5,0.386]
[1729437930524,0.37133,2693.7,2693.5,0.75735]
[1729437930714,41.1947,2694.0,2693.5,0.386]
[1729437930914,0.37134,2693.7,2693.5,0.386]
[1729437931218,0.37134,2693.7,2693.5,0.75735]
[1729437931422,41.1947,2694.0,2693.5,0.386]
[1729437932124,41.1947,2694.0,2693.6,0.37133]
[1729437932125,0.37132,2693.8,2693.6,0.37133]
[1729437932927,0.37132,2693.8,2691.2,3.8218594]
[1729437933132,0.3947,2694.0,2691.1,0.45942143]
[1729437933133,0.37164,2691.4,2691.1,0.45942143]
[1729437933323,0.37164,2691.4,2690.2,0.3718]
[1729437933324,0.37167,2691.2,2690.2,0.4113]
[1729437933524,0.37164,2691.5,2690.4,0.37177]
[1729437933721,1.32061,2691.7,2690.3,0.37179]
[1729437933921,0.949,2691.7,2690.4,0.11621887]
[1729437934120,3.57944,2691.4,2690.6,3.2078]
[1729437934320,0.37166,2691.3,2690.6,3.2078]
[1729437934622,3.2078,2691.1,2690.6,3.2078]
[1729437936723,3.57948,2691.1,2690.6,3.2078]
[1729437936926,3.2078,2690.8,2690.2,3.6191]
[1729437937330,3.57953,2690.8,2690.2,3.6191]
[1729437937631,3.2078,2690.8,2690.2,3.6191]
[1729437937830,3.2078,2690.8,2690.2,0.4113]
[1729437938031,0.37177,2690.5,2690.2,0.4113]
[1729437938219,3.2078,2690.8,2690.2,0.4113]
[1729437938220,0.37176,2690.6,2690.2,0.4113]
[1729437938419,3.2078,2690.8,2690.2,0.4113]
[1729437938621,0.37177,2690.5,2690.2,0.4113]
[1729437939127,3.2078,2690.5,2690.2,0.4113]
[1729437939331,0.37179,2690.4,2690.2,0.4113]
[1729437939533,0.37179,2690.3,2690.2,0.4113]
[1729437939730,0.37182,2690.2,2689.8,0.8084]
[1729437940029,0.37181,2690.2,2689.8,1.18026]
[1729437941229,0.37181,2690.2,2689.9,0.37185]
[1729437941430,0.37181,2690.2,2689.8,0.8084]
[1729437941724,3.2078,2690.5,2689.9,0.37185]
[1729437941928,0.37177,2690.5,2690.1,0.37181]
[1729437942331,0.37179,2690.4,2690.2,4.14]
[1729437942630,0.37179,2690.4,2690.2,0.4232]
[1729437942831,0.37179,2690.4,2690.3,3.7168]
[1729437944428,3.2078,2690.6,2690.3,3.7168]
[1729437944735,0.37178,2690.4,2690.2,0.4232]
[1729437944929,0.37177,2690.5,2690.2,0.795]
[1729437945228,0.37172,2690.8,2690.2,4.51181]
[1729437945427,0.37177,2690.5,2690.2,0.79501]
[1729437946030,0.37177,2690.5,2690.3,3.7168]
[1729437946425,0.37177,2690.5,2690.4,3.7168]
[1729437946726,0.37177,2690.5,2690.2,4.5118]
[1729437946933,0.37177,2690.5,2690.3,0.37179]
[1729437947321,0.37176,2690.6,2690.3,0.37179]
[1729437947727,0.37177,2690.5,2690.2,0.795]
[1729437948035,0.37177,2690.5,2690.3,0.37179]
[1729437948723,0.37177,2690.5,2690.3,4.08859]
[1729437948925,0.37178,2690.4,2690.2,0.795]
[1729437949121,0.37177,2690.5,2690.2,0.795]
[1729437949637,0.37177,2690.5,2690.3,0.37179]
[1729437950134,3.2078,2691.2,2690.4,6.9246]
[1729437950344,0.37173,2690.8,2690.5,0.37177]
[1729437950525,0.37173,2690.8,2690.6,0.37175]
[1729437950732,0.37172,2690.9,2690.6,0.37175]
[1729437951133,0.37174,2690.8,2690.5,0.37176]
[1729437951437,3.2078,2691.2,2690.4,0.95]
[1729437951636,3.2078,2690.9,2690.4,0.95]
[1729437951826,0.37176,2690.6,2690.4,0.95]
[1729437952133,3.2078,2690.9,2690.2,0.4232]
[1729437952134,4.13711,2690.9,2690.2,0.4232]
[1729437952343,0.37179,2690.4,2690.2,0.795]
[1729437952732,0.37177,2690.5,2690.2,0.795]
[1729437953237,0.37177,2690.5,2690.3,0.37179]
[1729437954335,3.57956,2690.6,2690.4,0.37178]
[1729437954530,0.37176,2690.6,2690.4,0.37178]
[1729437955135,0.37176,2690.6,2690.5,0.37177]
[1729437955536,0.37176,2690.6,2690.4,0.37177]
[1729437955841,0.37176,2690.6,2690.2,0.4232]
[1729437955842,0.37175,2690.7,2690.5,0.37176]
[1729437956632,0.37175,2690.7,2690.2,0.4232]
[1729437957342,0.37173,2690.8,2690.2,0.4232]
[1729437957532,3.2078,2691.0,2690.7,0.37174]
[1729437957732,0.37172,2690.9,2690.7,0.37174]
[1729437958338,0.37171,2690.9,2690.3,1.30128]
[1729437958538,0.37171,2690.9,2690.7,0.37173]
[1729437959842,3.2078,2691.0,2690.6,0.37174]
[1729437959843,0.37173,2690.8,2690.6,0.37174]
[1729437960051,0.37173,2690.8,2690.7,0.37174]
[1729437960338,0.37172,2690.9,2690.7,0.37174]
[1729437960540,0.37172,2690.9,2690.3,0.92949]
[1729437960940,0.37172,2690.9,2690.7,0.37173]
[1729437961143,0.37172,2690.8,2690.7,0.37173]
[1729437961335,0.37172,2690.9,2690.7,0.37173]
[1729437961533,3.2078,2691.0,2690.3,3.2078]
[1729437961733,0.37172,2690.9,2690.7,0.37173]
[1729437962237,3.2078,2691.0,2690.3,3.2078]
[1729437962442,3.57951,2691.0,2690.4,0.92946]
[1729437962642,3.2078,2691.0,2690.8,0.37171]
[1729437962839,0.37172,2690.9,2690.8,0.37172]
[1729437963146,3.57951,2691.0,2690.8,0.37172]
[1729437963439,3.2078,2691.0,2690.8,0.37172]
[1729437963639,0.37171,2690.9,2690.8,0.37172]
[1729437964443,3.5795,2691.0,2690.8,0.37172]
[1729437965542,0.37171,2690.9,2690.8,0.37172]
[1729437965743,0.37171,2690.9,2690.7,0.37173]
[1729437965936,3.2078,2691.0,2690.3,3.2078]
[1729437966138,3.2078,2691.0,2690.7,0.37174]
[1729437966440,3.2078,2691.0,2690.7,0.37173]
[1729437966742,0.37172,2690.8,2690.7,0.37173]
[1729437967134,0.37172,2690.9,2690.8,0.37172]
[1729437967332,0.37172,2690.9,2690.7,0.37173]
[1729437967540,3.57951,2691.0,2690.8,0.37172]
[1729437967844,0.37171,2690.9,2690.8,0.37172]
[1729437968151,0.37171,2690.9,2690.7,0.37173]
[1729437968644,3.57951,2691.0,2690.8,0.37172]
[1729437968950,0.37171,2690.9,2690.8,0.37172]
[1729437969246,3.57951,2691.0,2690.8,0.37172]
[1729437969447,3.57951,2691.0,2690.9,0.37171]
[1729437969636,3.2078,2691.0,2690.9,0.37171]
[1729437972640,3.2078,2691.0,2690.4,1.32636]
[1729437972836,0.37173,2690.8,2690.7,0.37173]
[1729437973048,0.37173,2690.8,2690.5,0.37177]
[1729437973238,0.37173,2690.8,2690.7,0.37174]
[1729437973749,0.37172,2690.9,2690.8,0.37172]
[1729437973944,3.2078,2691.0,2690.4,0.3969]
[1729437974141,0.37173,2690.8,2690.7,0.37173]
[1729437974340,0.37172,2690.9,2690.8,0.37172]
[1729437974838,0.37173,2690.8,2690.7,0.37173]
[1729437975040,3.2078,2691.0,2690.4,0.3969]
[1729437975245,3.2078,2691.0,2690.3,3.2078]
[1729437975442,0.37177,2690.5,2690.4,0.37177]
[1729437975653,0.37176,2690.6,2690.5,0.37176]
[1729437976043,0.37175,2690.7,2690.6,0.37175]
[1729437976243,0.37177,2690.5,2690.4,0.37177]
[1729437976442,3.2078,2691.0,2690.3,3.2078]
[1729437976643,0.37176,2690.6,2690.5,0.37176]
[1729437976845,0.37176,2690.6,2690.3,3.2078]
[1729437977043,0.37176,2690.6,2688.7,3.92078648]
[1729437977044,3.2078,2689.4,2688.9,1e-08]
[1729437977242,3.2078,2689.0,2687.6,3.57996]
[1729437977547,3.2078,2689.0,2686.6,0.93076]
[1729437977548,3.2078,2688.2,2687.7,0.60482854]
[1729437977745,3.2078,2688.2,2687.8,0.23267854]
[1729437978053,3.2078,2687.9,2687.3,0.69601552]
[1729437978247,42.22500288,2688.8,2687.1,1.7036]
[1729437978248,3.2078,2687.6,2687.4,0.11635488]
[1729437978450,3.2078,2687.9,2687.3,0.3722]
[1729437978761,3.2078,2687.9,2687.1,0.4236]
[1729437978762,3.2078,2687.9,2687.2,0.37222]
[1729437978956,3.2078,2687.9,2687.1,0.4236]
[1729437979256,3.57993,2687.9,2687.1,0.79583]
[1729437979848,3.57993,2687.9,2687.1,1.46559493]
[1729437980056,3.57993,2687.9,2687.1,0.79583]
[1729437980251,3.2078,2687.9,2687.1,0.79583]
[1729437980444,0.37214,2687.8,2687.1,0.79583]
[1729437981153,0.37214,2687.8,2687.2,0.37222]
[1729437981561,3.2078,2687.9,2687.1,0.4236]
[1729437981755,0.37215,2687.8,2687.1,0.4236]
[1729437982053,3.2078,2687.9,2687.2,1.28]
[1729437982357,3.57993,2687.9,2687.4,0.37219]
[1729437982548,3.2078,2687.9,2687.6,0.37217]
[1729437982746,3.2078,2687.9,2687.8,0.37214]
[1729437983254,3.2078,2687.9,2687.8,4.09294]
[1729437985943,3.2078,2687.9,2687.6,0.78285]
[1729437986258,3.2078,2687.9,2687.6,0.4107]
[1729437987252,3.2078,2687.9,2687.7,3.7208]
[1729437987555,3.2078,2687.9,2687.8,0.37214]
[1729437987749,3.2078,2687.9,2687.8,4.09294]
[1729437991468,3.2078,2688.4,2688.2,0.37207]
[1729437991871,3.2078,2688.4,2688.3,0.37207]
[1729437992076,3.2078,2688.7,2688.6,0.37203]
[1729437992470,3.2078,2688.7,2688.0,0.4168]
[1729437992667,3.57982,2688.7,2688.3,0.37206]
[1729437993079,3.57982,2688.7,2688.1,1.281]
[1729437993080,3.2078,2688.7,2688.1,1.281]
[1729437993273,3.2078,2688.7,2688.5,0.37204]
[1729437993479,3.2078,2688.7,2688.1,1.281]
[1729437993676,3.57982,2688.7,2688.4,0.37206]
[1729437994281,3.2078,2688.7,2688.5,0.37204]
[1729437995471,3.2078,2688.7,2688.6,0.37203]
[1729437997784,3.2078,2689.0,2688.9,0.37199]
[1729438000281,3.2078,2689.3,2689.2,0.37195]
[1729438000485,3.2078,2689.6,2689.0,0.92993]
[1729438000779,3.2078,2689.6,2689.5,0.3719]
[1729438000979,44.0078,2689.6,2689.5,0.3719]
[1729438003392,3.2078,2689.6,2689.5,0.3719]
[1729438004990,3.2078,2689.9,2689.8,0.37186]
[1729438006281,3.2078,2690.2,2689.9,1.30147]
[1729438006487,3.2078,2690.2,2689.9,0.37185]
[1729438006887,3.2078,2690.2,2690.1,0.37182]
[1729438007396,3.2078,2690.2,2688.1,2.11484256]
[1729438007397,6.9254,2690.2,2688.9,3.2078]
[1729438007593,3.2078,2689.7,2689.6,0.37189]
[1729438007892,3.2078,2689.7,2689.0,2.55774]
[1729438008095,3.57968,2689.7,2689.4,0.3719]
[1729438008484,3.2078,2689.7,2689.6,0.37189]
[1729438009782,42.94739,2690.6,2689.8,0.37186]
[1729438009783,3.2078,2690.0,2689.8,0.37186]
[1729438009992,3.57965,2690.0,2689.3,0.92981]
[1729438010192,3.57965,2690.0,2689.8,0.37186]
[1729438011394,3.2078,2690.0,2689.8,0.37186]
[1729438011692,3.2078,2690.0,2689.2,0.92985]
[1729438011888,3.57964,2690.0,2689.8,0.37185]
[1729438012286,3.2078,2690.0,2689.4,0.9298]
[1729438012490,3.2078,2690.0,2689.9,0.37185]
[1729438013892,0.37182,2690.1,2689.9,0.37185]
[1729438014194,3.2078,2690.0,2689.9,0.37185]
[1729438014993,3.57964,2690.0,2689.8,0.37186]
[1729438015693,3.2078,2690.0,2689.9,0.37185]
[1729438016101,3.2078,2690.0,2689.4,0.9298]
[1729438016102,3.57964,2690.0,2689.4,0.9298]
[1729438016294,3.2078,2690.0,2689.9,0.37185]
[1729438016487,3.57964,2690.0,2689.8,0.37185]
[1729438016992,3.2078,2690.0,2689.9,0.37185]
[1729438017394,3.57964,2690.0,2689.9,0.37185]
[1729438017797,3.2078,2690.0,2689.9,0.37185]
[1729438018497,3.57964,2690.0,2689.8,0.37185]
[1729438018691,3.57964,2690.0,2689.6,0.37188]
[1729438018692,0.37186,2689.8,2689.6,0.37188]
[1729438018999,0.92951,2690.3,2689.6,0.37188]
[1729438019000,3.2078,2689.7,2689.6,0.37188]
[1729438021501,3.2078,2690.0,2689.5,0.8025]
[1729438021792,3.2078,2690.0,2689.9,0.37185]
[1729438024493,3.2078,2690.0,2689.9,4.08945]
[1729438025594,3.2078,2690.0,2689.9,0.37185]
[1729438026599,3.2078,2690.0,2689.9,4.08945]
[1729438028398,3.2078,2690.3,2690.2,0.37181]
[1729438034002,3.2078,2690.3,2690.0,0.55235347]
[1729438034209,3.2078,2690.3,2689.8,0.92966]
[1729438034403,3.5796,2690.3,2690.2,0.37181]
[1729438036303,3.2078,2690.3,2690.2,0.37181]
[1729438036498,3.57959,2690.3,2690.2,0.37181]
[1729438036811,3.2078,2690.3,2690.2,0.37181]
[1729438037412,3.2078,2690.3,2689.8,1.48798971]
[1729438037706,3.5796,2690.3,2690.2,0.37181]
[1729438038509,3.2078,2690.3,2689.8,0.55832971]
[1729438038813,3.2078,2690.0,2689.9,0.37185]
[1729438045510,4.15748666,2690.0,2689.9,0.37185]
[1729438046925,0.94968666,2690.0,2689.9,0.37185]
[1729438047208,0.94968666,2690.1,2690.0,0.37184]
[1729438050210,0.94968666,2690.1,2690.0,0.48809422]
[1729438050415,1.42500288,2690.2,2690.0,0.11625422]
[1729438050609,1.42500288,2690.2,2690.1,0.37182]
[1729438051117,3.2078,2690.3,2690.2,0.37181]
[1729438053612,5.10780384,2690.3,2690.2,0.37181]
[1729438053814,3.2078,2690.3,2690.2,0.37181]
[1729438054519,4.64281058,2690.3,2690.2,0.37181]
[1729438055318,3.2078,2690.3,2690.2,0.37181]
[1729438055520,4.642907,2690.3,2690.2,0.37181]
[1729438058024,3.57959,2690.3,2690.2,0.37181]
[1729438058619,3.2078,2690.3,2690.2,0.37181]
[1729438059827,0.37179,2690.4,2690.3,0.37179]
[1729438060028,3.2078,2690.4,2690.1,0.37182]
[1729438060326,3.2078,2690.4,2690.3,0.37179]
[1729438062327,4.64494177,2690.4,2690.3,0.93249]
[1729438062625,4.64494177,2690.4,2690.3,1.59233493]
[1729438063620,4.64494177,2690.4,2690.3,1.47609]
[1729438063831,4.64494177,2690.4,2690.3,1.59233215]
[1729438064522,4.64494177,2690.4,2690.3,2.75269598]
[1729438064523,3.2078,2690.4,2690.3,2.75269598]
[1729438065423,4.64494177,2690.4,2690.3,1.77831934]
[1729438065728,1.0,2690.5,2690.4,0.37178]
[1729438065917,1.0,2690.5,2690.4,0.67400934]
[1729438066114,1.0,2690.5,2690.4,5.36518598]